bitfinex/quotes_BTCUSD_20251113
["timestamp","ask_amount","ask_price","bid_price","bid_amount"]
[1763045553099,0.09816915,103240.0,103230.0,0.21955915]
[1763045553334,0.09816915,103260.0,103250.0,0.1937046]
[1763045553530,0.24042749,103270.0,103230.0,4.48983911]
[1763045553754,0.28638233,103260.0,103230.0,4.274314]
[1763045553963,0.33770251,103240.0,103230.0,4.274314]
[1763045554383,0.43053161,103240.0,103230.0,3.91605196]
[1763045554583,0.43053161,103240.0,103230.0,3.77352476]
[1763045554785,0.43053161,103240.0,103230.0,3.34426055]
[1763045555004,0.43053161,103240.0,103230.0,3.22012384]
[1763045555206,2.8102516,103240.0,103230.0,0.59446672]
[1763045555443,2.8102516,103240.0,103230.0,0.38332905]
[1763045555670,0.80025161,103240.0,103230.0,0.3542304]
[1763045555895,0.33875161,103240.0,103230.0,0.32513175]
[1763045556127,0.47725161,103240.0,103230.0,0.32513175]
[1763045556983,0.47725161,103240.0,103230.0,0.61135387]
[1763045556984,0.0011391,103240.0,103230.0,0.61135387]
[1763045557196,0.0011391,103240.0,103230.0,0.51887387]
[1763045557409,0.0011391,103240.0,103230.0,0.32513175]
[1763045557622,0.0011391,103240.0,103230.0,0.51887387]
[1763045557877,0.1405091,103240.0,103230.0,0.51987387]
[1763045558060,0.1395091,103240.0,103230.0,0.32513175]
[1763045558283,0.1395091,103240.0,103230.0,0.88024622]
[1763045558284,0.0001391,103240.0,103230.0,0.88024622]
[1763045558489,0.0011391,103240.0,103230.0,1.50559515]
[1763045558615,0.23770775,103290.0,103260.0,0.20335137]
[1763045558819,0.23784677,103290.0,103270.0,0.1936657]
[1763045559252,0.09269,103280.0,103260.0,0.20335137]
[1763045559456,0.09269,103280.0,103250.0,0.20334952]
[1763045559676,0.09269,103280.0,103240.0,0.30021913]
[1763045559677,0.09816915,103270.0,103240.0,0.30021913]
[1763045559889,0.04672,103260.0,103230.0,0.32713175]
[1763045560130,0.04581,103240.0,103230.0,0.32513175]
[1763045560355,0.04581,103240.0,103230.0,0.51887387]
[1763045560585,0.09269,103250.0,103240.0,0.19372336]
[1763045560801,0.09269,103250.0,103230.0,0.32513175]
[1763045561022,0.14397915,103240.0,103230.0,0.32513175]
[1763045561445,0.09253,103260.0,103240.0,0.19372336]
[1763045561670,0.09816915,103250.0,103230.0,0.52856097]
[1763045562152,0.09816915,103250.0,103240.0,0.19372336]
[1763045562376,0.04672,103260.0,103250.0,0.1937046]
[1763045562603,0.39433904,103290.0,103270.0,0.19365095]
[1763045562604,0.09816915,103280.0,103270.0,0.19365095]
[1763045562839,0.11453133,103280.0,103270.0,0.00046413]
[1763045563285,0.20722133,103280.0,103270.0,0.00046413]
[1763045563746,0.40086966,103280.0,103270.0,0.00046413]
[1763045563969,0.20722133,103280.0,103270.0,0.00046413]
[1763045564219,0.11453133,103280.0,103270.0,0.00046413]
[1763045564469,0.11453133,103280.0,103270.0,0.19413121]
[1763045564696,0.20722133,103280.0,103270.0,0.00046413]
[1763045564920,0.40086966,103280.0,103270.0,0.00046413]
[1763045565344,0.00968335,103270.0,103230.0,0.32513175]
[1763045565543,0.0466,103260.0,103230.0,0.52902576]
[1763045565716,0.0466,103260.0,103250.0,0.1937046]
[1763045566099,0.04235593,103290.0,103250.0,0.20338983]
[1763045566306,0.04235593,103290.0,103280.0,0.19364833]
[1763045566508,0.0466,103290.0,103280.0,0.19364833]
[1763045566714,0.0466,103290.0,103270.0,0.19366708]
[1763045566918,0.291781,103300.0,103260.0,0.20335372]
[1763045567132,0.0466,103290.0,103270.0,0.19366649]
[1763045567336,0.0466,103290.0,103280.0,0.19364833]
[1763045567545,0.09816915,103320.0,103300.0,0.19359627]
[1763045567945,0.09816915,103320.0,103290.0,0.20328238]
[1763045567946,0.04656,103310.0,103290.0,0.20328238]
[1763045568153,0.29178073,103300.0,103270.0,0.00046479]
[1763045568516,0.09816915,103280.0,103270.0,0.00046479]
[1763045568728,0.14472915,103280.0,103270.0,0.00046479]
[1763045569129,0.23741915,103280.0,103270.0,0.00046479]
[1763045569355,0.19369407,103260.0,103220.0,0.20341178]
[1763045569642,0.04656,103250.0,103220.0,0.20387695]
[1763045569867,0.1378,103240.0,103220.0,0.19422469]
[1763045570112,0.33152439,103240.0,103220.0,0.00046517]
[1763045570329,0.28643212,103230.0,103220.0,0.00046517]
[1763045570592,0.28643212,103230.0,103220.0,0.00746517]
[1763045570593,0.09269,103230.0,103220.0,0.00746517]
[1763045570793,0.38460127,103230.0,103220.0,0.00746517]
[1763045571220,0.39974973,103230.0,103220.0,0.00746517]
[1763045571645,0.72674973,103230.0,103220.0,0.00746517]
[1763045571859,0.72674973,103230.0,103220.0,0.00046517]
[1763045572285,2.78016846,103230.0,103220.0,1e-08]
[1763045572493,0.20350599,103200.0,103150.0,0.22384507]
[1763045572725,0.20352845,103180.0,103150.0,0.0208469]
[1763045572929,0.20352845,103180.0,103150.0,0.00046591]
[1763045573164,0.09269,103170.0,103150.0,0.20405109]
[1763045573364,0.04648,103160.0,103150.0,0.00046591]
[1763045573509,0.14464915,103160.0,103150.0,0.00046591]
[1763045573714,0.23733915,103160.0,103150.0,0.00146591]
[1763045573920,0.43121274,103160.0,103150.0,0.00146591]
[1763045575099,0.43221274,103160.0,103150.0,0.00046591]
[1763045575301,0.43221274,103160.0,103150.0,0.00246591]
[1763045575933,0.43221274,103160.0,103150.0,0.00046591]
[1763045576140,0.43221274,103160.0,103150.0,0.00146591]
[1763045576349,0.75421274,103160.0,103150.0,0.00146591]
[1763045576783,0.75621274,103160.0,103150.0,0.00046591]
[1763045577054,0.75421274,103160.0,103150.0,0.00046591]
[1763045577270,0.75721274,103160.0,103150.0,0.00046591]
[1763045577756,0.51987359,103160.0,103150.0,0.00046591]
[1763045577949,0.01644727,103160.0,103150.0,0.28683829]
[1763045578160,0.01644727,103160.0,103150.0,0.3071878]
[1763045578366,0.01644727,103160.0,103150.0,0.33243666]
[1763045578784,0.01644727,103160.0,103150.0,0.2147078]
[1763045578996,0.01644727,103160.0,103150.0,0.19435829]
[1763045579201,0.01744727,103160.0,103150.0,0.20135829]
[1763045579347,0.11261642,103160.0,103150.0,0.00746591]
[1763045579561,0.11261642,103160.0,103150.0,0.20135829]
[1763045579730,0.11261642,103160.0,103150.0,0.19935829]
[1763045579925,0.11261642,103160.0,103150.0,0.20435829]
[1763045580173,0.11161642,103160.0,103150.0,0.19935829]
[1763045580371,0.11161642,103160.0,103150.0,0.20135829]
[1763045580613,0.21116642,103160.0,103150.0,0.00746591]
[1763045580807,0.40504001,103160.0,103150.0,0.00746591]
[1763045581045,0.01344727,103160.0,103150.0,0.00746591]
[1763045581244,0.29191704,103230.0,103180.0,0.19383601]
[1763045581445,0.09816915,103230.0,103200.0,0.81712506]
[1763045581764,0.3480841,103250.0,103220.0,0.19376089]
[1763045581991,0.19771915,103280.0,103230.0,0.0096871]
[1763045582185,0.02165,103290.0,103250.0,0.81701783]
[1763045582391,0.09816915,103280.0,103240.0,0.20340743]
[1763045582597,0.09816915,103260.0,103250.0,0.1937046]
[1763045582820,0.14492915,103260.0,103240.0,0.01015207]
[1763045583034,0.04676,103250.0,103240.0,0.00046591]
[1763045583245,0.04676,103250.0,103240.0,0.19418927]
[1763045583657,0.04676,103250.0,103240.0,0.00046591]
[1763045583869,0.04676,103250.0,103240.0,0.19418927]
[1763045584092,0.04676,103250.0,103240.0,0.00146591]
[1763045584295,0.3400146,103250.0,103240.0,0.00046591]
[1763045584720,0.14731,103250.0,103240.0,0.00046591]
[1763045584947,0.001,103250.0,103240.0,0.19418927]
[1763045585157,0.001,103250.0,103240.0,0.28553927]
[1763045585364,0.001,103250.0,103240.0,0.28853927]
[1763045585804,0.26124915,103280.0,103240.0,0.28553927]
[1763045586018,0.04672,103280.0,103270.0,0.19366708]
[1763045586452,0.19065915,103320.0,103300.0,0.19359637]
[1763045586663,0.19065915,103320.0,103270.0,0.19365984]
[1763045586664,0.1488496,103310.0,103270.0,0.19365984]
[1763045586876,0.09816915,103290.0,103260.0,0.20335195]
[1763045587089,0.04668,103280.0,103260.0,0.20335195]
[1763045587325,0.09816915,103290.0,103270.0,0.19366708]
[1763045587518,0.01019999,103330.0,103320.0,0.19357336]
[1763045587519,0.0002,103330.0,103320.0,0.19357336]
[1763045587725,0.0002,103330.0,103310.0,0.1935921]
[1763045587726,0.05072,103320.0,103310.0,0.1935921]
[1763045587966,0.05072,103320.0,103300.0,0.2032558]
[1763045588201,0.05072,103320.0,103310.0,0.1935921]
[1763045588417,0.05072,103320.0,103310.0,0.2849421]
[1763045588845,0.05072,103320.0,103310.0,0.28540801]
[1763045589060,0.04672,103320.0,103310.0,0.19405801]
[1763045589268,0.13921,103320.0,103310.0,0.00046591]
[1763045589499,0.04672,103320.0,103310.0,0.19405801]
[1763045590119,0.0002,103330.0,103320.0,0.19357336]
[1763045590863,0.0002,103330.0,103320.0,0.20357336]
[1763045591268,0.00489655,103340.0,103320.0,0.43651125]
[1763045591473,1e-08,103350.0,103340.0,0.56995464]
[1763045591888,1e-08,103350.0,103340.0,1.29511253]
[1763045592114,1e-08,103350.0,103340.0,1.27496011]
[1763045592327,1e-08,103350.0,103340.0,1.30194324]
[1763045592726,1e-08,103350.0,103340.0,2.55558935]
[1763045592969,1e-08,103350.0,103340.0,2.57385506]
[1763045593143,1e-08,103350.0,103340.0,0.70735069]
[1763045593343,1e-08,103350.0,103340.0,0.90254137]
[1763045593344,0.00462453,103350.0,103340.0,0.90254137]
[1763045593591,8e-05,103380.0,103370.0,0.19347973]
[1763045593765,8e-05,103380.0,103370.0,0.8984852]
[1763045594763,8e-05,103380.0,103370.0,0.28829564]
[1763045594964,8e-05,103380.0,103370.0,0.91195111]
[1763045595239,8e-05,103380.0,103370.0,0.00346591]
[1763045595473,8e-05,103380.0,103370.0,0.90195111]
[1763045595949,8e-05,103380.0,103370.0,1.25140445]
[1763045596367,0.01250069,103400.0,103390.0,0.1934423]
[1763045596592,6.9e-07,103400.0,103390.0,0.87739287]
[1763045596809,0.04668,103430.0,103390.0,0.87739287]
[1763045596810,0.04668,103430.0,103420.0,0.19318626]
[1763045597245,0.003,103460.0,103440.0,0.1933488]
[1763045597454,0.003,103460.0,103450.0,0.19333011]
[1763045597670,0.04964,103460.0,103450.0,0.19333011]
[1763045597899,0.003,103460.0,103450.0,0.19333011]
[1763045598113,0.003,103460.0,103420.0,0.29420556]
[1763045598114,2.0,103450.0,103360.0,0.0750362]
[1763045598336,0.00967024,103410.0,103360.0,0.20363885]
[1763045598549,0.5260716,103430.0,103390.0,0.19343734]
[1763045598763,0.2955616,103430.0,103390.0,0.19343839]
[1763045598969,0.28585869,103430.0,103400.0,0.19342119]
[1763045599102,0.09249,103420.0,103390.0,0.19344124]
[1763045599305,0.19065915,103420.0,103400.0,0.19342249]
[1763045599515,0.00121527,103400.0,103390.0,0.20311335]
[1763045599726,0.00121527,103400.0,103380.0,0.2030985]
[1763045599955,0.14488915,103400.0,103370.0,0.19347233]
[1763045600162,0.005,103430.0,103410.0,0.19340381]
[1763045600339,0.04811,103490.0,103450.0,0.19333011]
[1763045600539,0.04924,103490.0,103450.0,0.19333011]
[1763045600981,0.04924,103490.0,103450.0,0.32809885]
[1763045601194,0.04924,103490.0,103480.0,0.19327406]
[1763045601397,0.04924,103490.0,103480.0,0.31477711]
[1763045601606,0.0024,103490.0,103480.0,0.31477711]
[1763045602070,8.12322159,103500.0,103490.0,0.28460538]
[1763045602273,7.52226436,103500.0,103490.0,0.3563514]
[1763045602485,7.33681215,103500.0,103490.0,1.34501785]
[1763045602695,7.2388423,103500.0,103490.0,1.34501785]
[1763045602903,7.2388423,103500.0,103490.0,1.34176981]
[1763045602904,7.0691495,103500.0,103490.0,1.34176981]
[1763045603147,6.93291428,103500.0,103490.0,0.67935141]
[1763045603348,6.93291428,103500.0,103490.0,0.97360299]
[1763045603486,6.93291428,103500.0,103490.0,0.973603]
[1763045603693,6.93291428,103500.0,103490.0,0.27546753]
[1763045603898,6.93291428,103500.0,103490.0,0.26546753]
[1763045604157,6.93291428,103500.0,103490.0,0.62952879]
[1763045604331,6.93291428,103500.0,103490.0,0.02879341]
[1763045604667,6.93291428,103500.0,103490.0,0.07221215]
[1763045604892,6.93291428,103500.0,103490.0,0.02479341]
[1763045605350,6.93291428,103500.0,103440.0,0.00999999]
[1763045605351,0.1932768,103480.0,103440.0,0.00999999]
[1763045605582,0.04688,103470.0,103430.0,0.20302168]
[1763045605801,0.00242937,103450.0,103430.0,0.20303314]
[1763045606038,0.09249,103480.0,103450.0,0.19332993]
[1763045606274,0.04692,103460.0,103450.0,0.20299643]
[1763045606507,6.93491428,103500.0,103480.0,0.19327406]
[1763045606728,0.04688,103490.0,103470.0,0.20295737]
[1763045606960,0.14903276,103490.0,103450.0,0.01921262]
[1763045607179,0.14903276,103490.0,103450.0,0.20299609]
[1763045607455,0.39559729,103480.0,103440.0,0.20301624]
[1763045607691,0.39559729,103480.0,103430.0,0.2214465]
[1763045607930,0.39559729,103480.0,103410.0,0.80699404]
[1763045607931,0.20297758,103460.0,103410.0,0.20300881]
[1763045608171,0.14500915,103450.0,103420.0,0.19338415]
[1763045608408,0.34800637,103450.0,103410.0,0.20300881]
[1763045608648,0.09249,103440.0,103410.0,0.20307431]
[1763045608884,0.13933,103450.0,103430.0,0.20303586]
[1763045609110,0.13933,103450.0,103420.0,0.22026067]
[1763045609334,0.13933,103450.0,103430.0,0.19336735]
[1763045609561,0.09816915,103440.0,103420.0,0.22026067]
[1763045609790,0.18969915,103440.0,103410.0,0.20307431]
[1763045610231,0.09816915,103420.0,103380.0,0.22172773]
[1763045610437,0.0468,103410.0,103390.0,0.19344157]
[1763045610649,0.13833,103410.0,103390.0,0.19344087]
[1763045610874,0.13833,103410.0,103390.0,0.1934416]
[1763045611148,0.13833,103410.0,103380.0,0.20312519]
[1763045611418,0.09153,103400.0,103380.0,0.20312519]
[1763045611668,0.36312842,103400.0,103350.0,0.21140145]
[1763045611958,0.29159842,103400.0,103360.0,0.19349626]
[1763045612169,0.29159842,103400.0,103360.0,0.19349743]
[1763045612417,0.29159558,103400.0,103360.0,0.20317235]
[1763045612661,0.19344405,103390.0,103350.0,0.20314757]
[1763045612895,0.09816915,103370.0,103350.0,0.004]
[1763045613135,0.09816915,103370.0,103350.0,0.19751506]
[1763045613377,0.09816915,103370.0,103350.0,0.19351506]
[1763045613634,0.18969915,103370.0,103340.0,0.20321246]
[1763045613882,0.21817915,103370.0,103340.0,0.20321246]
[1763045614137,0.21817915,103370.0,103340.0,0.20321223]
[1763045614138,0.09153,103360.0,103340.0,0.20321223]
[1763045614377,0.14488915,103350.0,103340.0,0.20321223]
[1763045614621,0.14488915,103350.0,103330.0,0.19348759]
[1763045614861,0.14488915,103350.0,103320.0,2.47828727]
[1763045615141,0.09153,103340.0,103320.0,2.275144]
[1763045615368,0.09153,103340.0,103330.0,0.19355463]
[1763045615831,0.09153,103340.0,103320.0,2.46871685]
[1763045616074,0.33305658,103340.0,103320.0,2.275144]
[1763045616328,0.33305605,103340.0,103320.0,2.276144]
[1763045616562,0.09153,103330.0,103320.0,2.276144]
[1763045617032,0.38325378,103330.0,103320.0,2.276144]
[1763045617275,0.18969915,103330.0,103320.0,2.276144]
[1763045617767,0.14480915,103330.0,103320.0,2.46871736]
[1763045618457,0.23633915,103330.0,103320.0,2.46871736]
[1763045618679,0.42989378,103330.0,103320.0,2.275144]
[1763045618936,0.75589378,103330.0,103320.0,0.891044]
[1763045619146,0.75589378,103330.0,103320.0,0.26088851]
[1763045619147,3.36654925,103330.0,103320.0,0.26088851]
[1763045619355,3.36654925,103330.0,103320.0,0.00337007]
[1763045619557,3.36654925,103330.0,103270.0,0.1936669]
[1763045619558,0.20327778,103310.0,103270.0,0.20334935]
[1763045619769,0.24164043,103280.0,103220.0,0.20332658]
[1763045619990,0.24164043,103280.0,103230.0,0.20342323]
[1763045619991,0.33179753,103270.0,103230.0,0.20342323]
[1763045620267,0.34148088,103270.0,103210.0,0.20336453]
[1763045620480,0.04799,103230.0,103200.0,0.20348763]
[1763045620694,0.0466,103220.0,103200.0,0.20348763]
[1763045620916,0.0466,103220.0,103200.0,0.80744662]
[1763045621132,0.0466,103220.0,103200.0,0.61365547]
[1763045621384,0.0466,103220.0,103210.0,0.19377967]
[1763045621596,0.03642892,103220.0,103210.0,0.19377967]
[1763045622468,0.04656,103240.0,103230.0,0.19374212]
[1763045622742,0.57432284,103280.0,103230.0,0.19374212]
[1763045622743,0.09816915,103270.0,103260.0,0.19368584]
[1763045622950,0.14472915,103270.0,103260.0,0.19368584]
[1763045623598,0.23625915,103270.0,103240.0,0.20339354]
[1763045623809,0.42992794,103270.0,103240.0,0.20339354]
[1763045624033,0.28521723,103260.0,103220.0,0.20344882]
[1763045624245,0.09816915,103250.0,103230.0,0.19374055]
[1763045624457,0.04652,103240.0,103220.0,0.20344882]
[1763045624670,0.04652,103240.0,103230.0,0.19374212]
[1763045624889,0.04652,103240.0,103220.0,0.20344882]
[1763045625123,0.04652,103240.0,103220.0,0.20644882]
[1763045625337,0.13805,103240.0,103220.0,0.20644882]
[1763045625572,0.18604,103240.0,103230.0,0.19374212]
[1763045625788,0.04752,103240.0,103230.0,0.19374212]
[1763045626741,0.13905,103240.0,103230.0,0.19374212]
[1763045627190,0.04752,103240.0,103230.0,0.19374212]
[1763045627421,0.18704,103240.0,103230.0,0.19374212]
[1763045627664,0.001,103240.0,103230.0,0.80739759]
[1763045627910,0.09816915,103270.0,103250.0,0.1937046]
[1763045627911,0.04644,103260.0,103250.0,0.1937046]
[1763045628349,0.3316559,103260.0,103230.0,0.004]
[1763045628554,0.14615915,103240.0,103230.0,0.004]
[1763045628757,0.14615915,103240.0,103230.0,0.003]
[1763045628957,0.44109867,103240.0,103200.0,0.20343537]
[1763045629166,0.33171445,103230.0,103190.0,0.20347327]
[1763045629376,0.09816915,103220.0,103190.0,0.19381719]
[1763045629583,0.18969915,103220.0,103200.0,0.19379111]
[1763045629780,0.18969915,103220.0,103190.0,0.20350805]
[1763045629993,0.14761898,103210.0,103170.0,0.82342735]
[1763045630279,0.33171017,103210.0,103170.0,0.61365547]
[1763045630683,0.33171017,103210.0,103180.0,0.19383486]
[1763045630684,0.09153,103200.0,103180.0,0.19383486]
[1763045630686,0.18969915,103200.0,103180.0,0.19383486]
[1763045631092,0.04636,103190.0,103170.0,0.61365547]
[1763045631292,0.38938875,103190.0,103160.0,0.00503622]
[1763045631622,0.001,103220.0,103190.0,0.00969086]
[1763045631775,0.09916915,103220.0,103190.0,0.2034772]
[1763045631975,0.09816915,103200.0,103180.0,0.003]
[1763045632175,0.0464,103190.0,103170.0,0.20354708]
[1763045632375,0.0464,103190.0,103180.0,0.19383601]
[1763045632873,0.0464,103210.0,103190.0,0.19380076]
[1763045633098,0.52650193,103250.0,103190.0,0.19380076]
[1763045633099,0.38337308,103270.0,103210.0,0.19374782]
[1763045633353,0.09816915,103250.0,103210.0,0.2034368]
[1763045633601,0.30155905,103250.0,103210.0,0.20346606]
[1763045633771,0.19374305,103230.0,103200.0,0.61365547]
[1763045633995,0.19374305,103230.0,103190.0,0.20349162]
[1763045633996,0.09816915,103210.0,103190.0,0.20349162]
[1763045634130,0.09816915,103210.0,103200.0,0.19379844]
[1763045634131,0.04644,103210.0,103200.0,0.19379844]
[1763045634333,0.04644,103240.0,103230.0,0.19374212]
[1763045634733,0.04644,103240.0,103210.0,0.81710745]
[1763045634969,0.04644,103240.0,103220.0,0.19375974]
[1763045634970,0.1853,103240.0,103220.0,0.19375974]
[1763045635168,0.1853,103240.0,103230.0,0.19374212]
[1763045635376,0.04644,103240.0,103230.0,0.19374212]
[1763045635751,0.04844,103240.0,103230.0,0.19374212]
[1763045635963,0.04944,103240.0,103230.0,0.19374212]
[1763045636185,0.04944,103240.0,103230.0,0.84306994]
[1763045636186,0.003,103240.0,103230.0,0.84306994]
[1763045636612,0.0464,103280.0,103270.0,0.19366708]
[1763045636810,0.0464,103280.0,103260.0,0.19368584]
[1763045637038,0.13793,103280.0,103240.0,0.20336518]
[1763045637241,0.13793,103280.0,103260.0,0.19368491]
[1763045637466,0.0464,103280.0,103250.0,0.20338842]
[1763045637681,0.09153,103270.0,103250.0,0.19370437]
[1763045637931,0.0464,103280.0,103260.0,0.19368584]
[1763045638181,0.13884,103290.0,103260.0,0.20337013]
[1763045638570,0.18969915,103280.0,103250.0,0.2033896]
[1763045638747,0.04636,103270.0,103240.0,0.20336518]
[1763045638947,0.04636,103270.0,103250.0,0.19370409]
[1763045639172,0.04636,103270.0,103240.0,0.20336518]
[1763045639173,0.33156048,103270.0,103240.0,0.20336518]
[1763045639329,0.33155873,103270.0,103230.0,0.75452704]
[1763045639533,0.18969915,103260.0,103230.0,0.20342922]
[1763045639731,0.18969915,103260.0,103240.0,0.1937232]
[1763045639976,0.19655915,103260.0,103240.0,0.19372325]
[1763045640178,0.19655915,103260.0,103250.0,0.1937046]
[1763045640332,0.04636,103270.0,103260.0,0.19368584]
[1763045640726,0.14475,103270.0,103240.0,0.19372258]
[1763045640914,0.001,103280.0,103250.0,0.2033898]
[1763045641142,0.00024314,103360.0,103320.0,0.00967866]
[1763045641329,0.00024314,103360.0,103330.0,0.20319768]
[1763045641651,0.00024314,103360.0,103350.0,0.19351717]
[1763045641862,0.09863314,103360.0,103310.0,0.25379499]
[1763045642108,0.30181191,103360.0,103310.0,0.20320275]
[1763045642316,0.32683288,103320.0,103270.0,0.04058433]
[1763045642521,0.2032964,103300.0,103260.0,0.19368334]
[1763045642727,0.2032964,103300.0,103250.0,0.001]
[1763045642728,0.34147888,103280.0,103250.0,0.001]
[1763045642934,0.04656,103270.0,103250.0,0.001]
[1763045643145,0.14495,103270.0,103250.0,0.001]
[1763045643562,0.14495,103270.0,103250.0,0.19470131]
[1763045643780,0.14495,103270.0,103250.0,0.1947046]
[1763045643987,0.14472915,103260.0,103250.0,0.1947046]
[1763045644200,0.14472915,103260.0,103250.0,0.1937046]
[1763045644419,0.14782915,103280.0,103260.0,0.19368584]
[1763045644633,0.04656,103280.0,103260.0,0.20337013]
[1763045644848,0.04656,103280.0,103270.0,0.19366708]
[1763045645063,0.09816915,103300.0,103290.0,0.19362958]
[1763045645064,0.004,103300.0,103290.0,0.19362958]
[1763045645484,0.04656,103320.0,103310.0,0.1935921]
[1763045645700,0.04656,103320.0,103300.0,0.19360926]
[1763045645918,0.13932,103320.0,103290.0,0.20330651]
[1763045646128,0.23748915,103320.0,103290.0,0.20330651]
[1763045646335,0.23748915,103320.0,103310.0,0.1935921]
[1763045646553,0.14472915,103320.0,103310.0,0.1935921]
[1763045646759,0.04956,103320.0,103310.0,0.1935921]
[1763045646976,0.003,103320.0,103310.0,0.1935921]
[1763045647222,0.003,103320.0,103310.0,0.21825873]
[1763045647430,0.003,103320.0,103310.0,0.1935921]
[1763045648077,0.04652,103340.0,103330.0,0.19355463]
[1763045648495,0.04652,103340.0,103300.0,0.26174025]
[1763045648496,0.37526673,103340.0,103300.0,0.26174025]
[1763045648700,0.37526673,103340.0,103320.0,0.19357144]
[1763045648701,0.27989915,103340.0,103320.0,0.19357144]
[1763045648937,0.27989915,103340.0,103300.0,0.19360951]
[1763045649142,0.27989915,103340.0,103300.0,0.00968054]
[1763045649143,0.10016915,103320.0,103300.0,0.00968054]
[1763045649345,0.04652,103310.0,103300.0,0.19360992]
[1763045649583,0.13928,103310.0,103300.0,0.19361084]
[1763045649790,0.33287331,103310.0,103280.0,0.19364621]
[1763045650001,0.3845407,103300.0,103270.0,0.19366563]
[1763045650207,0.04795,103290.0,103270.0,0.19366546]
[1763045650415,0.14464915,103280.0,103260.0,0.20333312]
[1763045650628,0.14464915,103280.0,103260.0,0.19368527]
[1763045650846,0.85252341,103320.0,103260.0,0.19368527]
[1763045650847,0.04645,103340.0,103320.0,0.1935686]
[1763045651053,0.04645,103340.0,103300.0,0.20327264]
[1763045651054,0.38026838,103340.0,103300.0,0.20327264]
[1763045651260,0.40790899,103340.0,103300.0,0.20327264]
[1763045651473,0.18573,103340.0,103300.0,0.20329006]
[1763045651691,0.19092915,103330.0,103300.0,0.20329006]
[1763045651855,0.19092915,103330.0,103310.0,0.19359142]
[1763045652118,0.28633635,103320.0,103290.0,0.19362881]
[1763045652331,0.33824137,103310.0,103270.0,0.03513374]
[1763045652555,0.23740915,103310.0,103280.0,0.00968241]
[1763045652768,0.09816915,103290.0,103270.0,0.20334961]
[1763045652975,0.04648,103280.0,103250.0,0.22877009]
[1763045653297,0.33288848,103280.0,103250.0,0.2033197]
[1763045653572,0.13924,103280.0,103250.0,0.20338881]
[1763045653810,0.04648,103280.0,103270.0,0.19366708]
[1763045654016,0.28642743,103270.0,103240.0,0.05938424]
[1763045654378,0.09276,103260.0,103230.0,0.20337889]
[1763045654582,0.04644,103250.0,103230.0,0.20337889]
[1763045654796,0.04644,103250.0,103210.0,0.05938424]
[1763045654797,0.33831496,103250.0,103210.0,0.05938424]
[1763045654997,0.14077,103240.0,103210.0,0.22891879]
[1763045655200,0.14077,103240.0,103220.0,0.19376037]
[1763045655392,0.09276,103240.0,103210.0,0.2034684]
[1763045655592,0.14077,103240.0,103220.0,0.19375956]
[1763045655727,0.14077,103240.0,103200.0,0.20348491]
[1763045655728,0.09816915,103230.0,103200.0,0.20348491]
[1763045655926,0.0464,103220.0,103210.0,0.19377961]
[1763045656354,0.0464,103220.0,103190.0,0.26275291]
[1763045656355,0.13916,103220.0,103190.0,0.26288745]
[1763045656566,0.09816915,103210.0,103190.0,0.20350321]
[1763045656759,0.19092915,103210.0,103190.0,0.20350321]
[1763045657182,0.38470939,103210.0,103180.0,0.21925335]
[1763045657347,0.38470939,103210.0,103170.0,0.02545039]
[1763045657348,0.28655924,103200.0,103170.0,0.02545039]
[1763045657583,0.28655924,103200.0,103160.0,0.00503622]
[1763045657584,0.28819375,103190.0,103160.0,0.00503622]
[1763045657787,0.18713,103190.0,103160.0,0.20859967]
[1763045657986,0.09276,103180.0,103160.0,0.20859967]
[1763045658191,0.09276,103180.0,103160.0,0.00503622]
[1763045658799,0.29202395,103170.0,103160.0,0.00503622]
[1763045659093,0.09816915,103170.0,103160.0,0.00803622]
[1763045659297,0.70778395,103170.0,103160.0,0.00803622]
[1763045659724,0.71778394,103170.0,103160.0,0.00803622]
[1763045659910,0.19092915,103170.0,103160.0,0.00803622]
[1763045660380,0.19092915,103170.0,103160.0,0.00503622]
[1763045660600,0.09816915,103170.0,103160.0,0.19890981]
[1763045660811,0.11628,103180.0,103160.0,0.19890893]
[1763045661078,0.11628,103180.0,103170.0,0.1938548]
[1763045661493,0.11628,103180.0,103160.0,0.00503622]
[1763045661931,0.43510395,103170.0,103160.0,0.00503622]
[1763045662139,0.19387359,103160.0,103150.0,0.0004]
[1763045662367,0.28663359,103160.0,103150.0,0.0004]
[1763045663417,0.09276,103160.0,103150.0,0.0004]
[1763045663625,0.09376,103160.0,103150.0,0.0004]
[1763045664243,0.09376,103160.0,103150.0,0.000294]
[1763045664664,0.04724,103160.0,103150.0,0.19418638]
[1763045664873,0.33387359,103160.0,103150.0,0.000294]
[1763045665097,0.139,103160.0,103150.0,0.001294]
[1763045665480,0.141,103160.0,103150.0,0.001294]
[1763045665703,0.04824,103160.0,103150.0,0.001294]
[1763045665911,0.33287359,103160.0,103150.0,0.001294]
[1763045666119,0.04624,103160.0,103150.0,0.19518638]
[1763045666348,0.04724,103160.0,103150.0,0.001294]
[1763045666552,0.33387359,103160.0,103150.0,0.001294]
[1763045666757,0.14,103160.0,103150.0,0.001294]
[1763045666960,0.33387359,103160.0,103150.0,0.001294]
[1763045667832,0.33387359,103160.0,103150.0,0.00153789]
[1763045667833,0.14,103160.0,103150.0,0.00153789]
[1763045668041,0.001,103160.0,103150.0,0.00153789]
[1763045668259,0.001,103160.0,103150.0,0.28621027]
[1763045668469,0.04616,103180.0,103160.0,0.19385725]
[1763045668723,0.04616,103180.0,103150.0,0.20412488]
[1763045668950,0.002,103160.0,103150.0,0.20412488]
[1763045669149,0.0482,103160.0,103150.0,0.20412488]
[1763045669358,0.0512,103160.0,103150.0,0.19443027]
[1763045669780,0.0482,103160.0,103150.0,0.19443027]
[1763045669994,0.002,103160.0,103150.0,0.19443027]
[1763045670205,0.0462,103160.0,103150.0,0.19843027]
[1763045670870,0.09816915,103180.0,103150.0,0.20812488]
[1763045671082,0.001,103160.0,103150.0,0.20543027]
[1763045671306,0.001,103160.0,103150.0,0.01153789]
[1763045671587,0.09356,103160.0,103150.0,0.00053789]
[1763045671783,0.09456,103160.0,103150.0,0.00153789]
[1763045671985,0.28843359,103160.0,103150.0,0.00053789]
[1763045672172,0.09356,103160.0,103150.0,0.00053789]
[1763045672326,0.19172915,103160.0,103150.0,0.00053789]
[1763045672580,0.43172274,103160.0,103150.0,0.00053789]
[1763045672944,0.00969555,103140.0,103100.0,0.20371381]
[1763045673178,0.04612,103130.0,103110.0,0.19396652]
[1763045673336,0.13968,103130.0,103120.0,0.19394879]
[1763045673893,0.13968,103130.0,103110.0,0.19396652]
[1763045674112,0.13968,103130.0,103100.0,0.20371381]
[1763045674113,0.24005484,103130.0,103100.0,0.20371381]
[1763045674314,0.09356,103120.0,103100.0,0.20371381]